Cogmind - Beta 11.1 @@@ ROGUE MODE // 2022.05.03 @ 16:45:46 Player: Cmdr.Laserstrahl Result: Destroyed by Y-54 Guardian with Gatling Laser Performance ------------- Evolutions (3) 1500 Regions Visited (5) 1000 Robots Destroyed (105) 525 Value Destroyed (3754) 3754 Prototype IDs (2) 40 Alien Tech Used (0) 0 Bonus (1109) 1109 TOTAL SCORE: 7928 Bonus ------- High Alert Combat Kills 909 Entered Garrisons 200 Cogmind --------- Core Integrity 0/700 Matter 300/300 Energy 35/100 System Corruption 5% Temperature Cool (6) Movement Core (150) Ox2 Location -7/Garrison Parts ------- > --- POWER (2) -------- (None) > --- PROPULSION (4) --- (None) > --- UTILITY (5) ------ Large Storage Unit Weight Redist. System Improved Targeting Computer > --- WEAPON (2) ------- Katana > --- INVENTORY (15) --- Cooling System Core Shielding Relay Coupler [Brawler] (31) Relay Coupler [Sentry] (26) Precision Shock Rifle Beam Rifle Gatling Laser Autogun Autogun Improved Light Cannon Improved Light Cannon Gauss Cannon Peak State ------------ > --- POWER ------------ Light Nuclear Core Light Nuclear Core > --- PROPULSION ------- VSS Leg VSS Leg VSS Leg VSS Leg > --- UTILITY ---------- Large Storage Unit Signal Interpreter Improved Targeting Computer Improved Light Armor Plating Reactive Plating > --- WEAPON ----------- Beam Rifle Mini Grenade Launcher > --- INVENTORY -------- Hover Unit Hover Unit Improved Hover Unit Improved Hover Unit Advanced Heat Sink Cooling System Weight Redist. System Core Shielding Core Shielding Precision Shock Rifle Minigun Improved Light Cannon Improved Light Cannon Gauss Cannon Katana [Rating: 35] Favorites ----------- Power Light Nuclear Core Engine Ion Engine Power Core Light Nuclear Core Propulsion VSS Leg Treads Light Treads Leg VSS Leg Wheel Compact Wheel Hover Unit Hover Unit Utility Signal Interpreter Device ECM Suite Storage Small Storage Unit Processor Signal Interpreter Protection Reactive Plating Weapon EM Shotgun Energy Gun EM Shotgun Ballistic Gun Minigun Ballistic Cannon Improved Light Cannon Launcher Missile Launcher Special Weapon Mining Laser Slashing Weapon Katana Build | -11 -10 -9 -8 -7 -7 ------- Run | Scr Mat Mat Mat Fac Gar Slots Evolved 6 | . . 2 2 2 . Power 1 | . . . . 1 . Propulsion 2 | . . . 1 1 . Utility 3 | . . 2 1 . . Weapon . | . . . . . . Parts Attached 83 | 6 13 19 16 7 22 Power 15 | 1 3 2 2 2 5 Engine 6 | 1 3 2 . . . Core 9 | . . . 2 2 5 Reactor . | . . . . . . Propulsion 27 | 2 4 5 6 1 9 Treads 1 | . . . . . 1 Leg 14 | . 2 3 4 1 4 Wheel 4 | 2 2 . . . . Hover 8 | . . 2 2 . 4 Flight . | . . . . . . Utility 14 | 1 2 2 3 3 3 Device 5 | . 1 1 1 . 2 Storage 2 | 1 . . 1 . . Processor 3 | . 1 1 . 1 . Hackware . | . . . . . . Protection 4 | . . . 1 2 1 Artifact . | . . . . . . Weapon 27 | 2 4 10 5 1 5 Energy Gun 5 | 1 . 2 . 1 1 Energy Cannon . | . . . . . . Ballistic Gun 5 | 1 2 . . . 2 Ballistic Cannon 4 | . . 3 1 . . Launcher 8 | . 2 4 2 . . Special Weapon 1 | . . 1 . . . Impact Weapon . | . . . . . . Slashing Weapon 4 | . . . 2 . 2 Piercing Weapon . | . . . . . . Special Melee Weapon . | . . . . . . Unidentified Prototypes 2 | . . 1 . . 1 Corrupted Parts 2 | . . 1 . . 1 System Corruption 5 | . . 1 . . 4 Parts Lost 32 | . 3 3 2 1 23 Power 8 | . 1 . . . 7 Propulsion 12 | . 2 1 . . 9 Utility 6 | . . . 1 1 4 Weapon 6 | . . 2 1 . 3 Highest Loss Streak 8 | . 2 2 2 1 8 To Critical Strikes . | . . . . . . Average Slot Usage (%) 95 | . 92 99 97 98 88 Engine 5 | . 12 11 . . . Core 5 | . . . 8 15 12 Leg 16 | . 16 10 22 30 17 Hover 6 | . . 11 4 . 3 Device 10 | . 9 11 13 . 9 Storage 9 | . 14 11 9 7 7 Processor 15 | . 1 22 18 15 10 Protection 3 | . . . 2 13 8 Energy Gun 4 | . 3 8 . 4 2 Ballistic Gun 4 | . 17 . . . 9 Ballistic Cannon 1 | . . 3 . . . Launcher 6 | . 5 9 9 7 1 Slashing Weapon 2 | . . . 7 2 . Naked Turns . | . . . . . . Heaviest Build 48 | 12 18 22 36 47 48 Greatest Support 54 | 26 32 20 42 54 50 Greatest Overweight (x) 3 | 1 . 3 1 . 3 Average Overweight (x) . | . . . . . . Largest Inventory Capacity 15 | 8 8 8 15 15 15 Average Capacity 11 | 7 8 8 13 15 15 Most Carried 15 | 5 8 8 15 15 15 Average Carried 10 | 2 6 7 12 14 12 Final Capacity 15 | 8 8 8 15 15 15 Final Carried 15 | 5 8 8 15 15 12 Class Distribution -------------------- 75% | Mutant 24% | Scavenger-Mutant Dominant Class ---------------- Mutant | -10/Materials Mutant | -9/Materials Mutant | -8/Materials Mutant | -7/Factory Scavenger-Mutant | -7/Garrison Resources | -11 -10 -9 -8 -7 -7 ----------- Run | Scr Mat Mat Mat Fac Gar Matter Collected 2297 | 268 185 496 747 180 421 Remotely . | . . . . . . Salvage Created 2740 | 83 242 554 952 161 748 Parts 175 | 1 23 44 60 5 42 Haulers Intercepted 3 | . . 2 1 . . Recyclers Shooed . | . . . . . . Parts Field Recycled . | . . . . . . Retrieved Matter . | . . . . . . Parts Self-Destructed . | . . . . . . Prevented . | . . . . . . Kills | -11 -10 -9 -8 -7 -7 ------- Run | Scr Mat Mat Mat Fac Gar Combat Hostiles Destroyed 74 | . 9 11 21 9 24 Melee 7 | . . . 3 . 4 Guns 14 | . 2 1 . . 11 Cannons 1 | . . . 1 . . AOE 51 | . 7 9 17 9 9 Classes Destroyed 14 | 1 4 6 2 . 1 Worker 6 | . . 1 4 1 . Builder 7 | . . 3 4 . . Tunneler 3 | . 2 . 1 . . Hauler 3 | . . 2 1 . . Recycler 5 | 1 . 1 3 . . Mechanic 1 | . . . 1 . . Operator 2 | . . 1 1 . . Watcher 4 | . 1 1 2 . . Swarmer 23 | . 3 3 . 6 11 Grunt 33 | . 6 6 12 3 6 Brawler 5 | . . 1 3 . 1 Duelist 2 | . . . 2 . . Sentry 8 | . . 1 4 . 3 Hunter 3 | . . . . . 3 Best Kill Streak 10 | 1 4 9 6 10 8 Combat Bots Only 9 | . 3 7 4 9 8 Max Kills in Single Turn 4 | 1 2 4 3 3 2 Gunslinging . | . . . . . . Exploded 4 | . 2 4 2 2 2 Melee 1 | . . . 1 . 1 Uniques/NPCs Destroyed . | . . . . . . Combat | -11 -10 -9 -8 -7 -7 -------- Run | Scr Mat Mat Mat Fac Gar Damage Taken 4510 | . 396 876 579 191 2468 Core 1218 | . 123 246 142 23 684 Absorbed by Shields . | . . . . . . Redirected to Shielding 51 | . . . . . 51 Regen/Repaired (Parts) 48 | . . . 48 . . Core Remaining (%) 65 | 100 50 38 74 . . Volleys Fired 206 | 8 26 61 57 12 42 Largest 2 | 2 2 2 1 1 2 Hottest 100 | 60 60 100 44 56 86 Shots Fired 273 | 16 43 66 57 12 79 Gun 145 | 16 31 28 . 3 67 Cannon 39 | . . 17 22 . . Launcher 84 | . 12 16 35 9 12 Special 5 | . . 5 . . . Kinetic 121 | 8 27 17 22 . 47 Thermal 28 | 8 4 5 . 3 8 Explosive 84 | . 12 16 35 9 12 Electromagnetic 40 | . . 28 . . 12 Robot Hit Streak 19 | 2 5 8 16 19 11 Robot Miss Streak 6 | 3 3 5 6 1 1 Penetration Max . | . . . . . . Secondary Targets 2 | . . . . . 2 Max Gunslinging Chain 1 | . . . . . 1 Shots Hit Robots 199 | 7 25 38 53 4 72 Core Hits 193 | 2 19 33 68 15 56 Critical Kills . | . . . . . . Critical Parts Destroyed . | . . . . . . Critical Strikes 4 | . . . 2 . 2 Destroy 1 | . . . . . 1 Sever 3 | . . . 2 . 1 Melee Attacks 32 | . . . 15 . 17 Impact . | . . . . . . Slashing 32 | . . . 15 . 17 Piercing . | . . . . . . Sneak Attacks 5 | . . . 5 . . Combat Hostiles . | . . . . . . Follow-up Attacks . | . . . . . . Damage Inflicted 9259 | 72 837 1552 3787 743 2268 Guns 1484 | 72 220 323 . 43 826 Cannons 495 | . . 200 295 . . Explosions 6319 | . 617 1029 2953 700 1020 Melee 961 | . . . 539 . 422 Ramming . | . . . . . . Kinetic 1275 | 39 196 200 295 . 545 Thermal 291 | 33 24 119 . 43 72 Explosive 6200 | . 617 910 2953 700 1020 Electromagnetic 532 | . . 323 . . 209 Impact . | . . . . . . Slashing 961 | . . . 539 . 422 Piercing . | . . . . . . Highest Corruption 6 | . . 6 . . 5 Average Corruption 5 | . . 5 . . 4 Corruption Purged . | . . . . . . Corruption Blocked . | . . . . . . Effects 46 | . . 33 . . 13 Message Errors 9 | . . 4 . . 5 Matter Fused 8 | . . 7 . . 1 Heat Flow Errors 4 | . . 3 . . 1 Energy Discharges 8 | . . 7 . . 1 Parts Rejected 1 | . . 1 . . . Data Loss (minor) 7 | . . 4 . . 3 Data Loss (major) 2 | . . . . . 2 Misfires 3 | . . 3 . . . Alerts 2 | . . 2 . . . Weapon Failures 2 | . . 2 . . . Overload Shots . | . . . . . . Overflow Damage 209 | . 20 71 113 5 . Projectiles 12 | . . 4 8 . . Explosions 119 | . 20 67 27 5 . Melee 78 | . . . 78 . . Knockbacks 6 | . . 1 5 . . Impact . | . . . . . . Kinetic 6 | . . 1 5 . . Secondary . | . . . . . . Self-Inflicted Damage 359 | . . 125 99 31 104 Shots 16 | . . 4 5 1 6 Rammed . | . . . . . . Targets Rammed . | . . . . . . Kicked . | . . . . . . Crushed . | . . . . . . Highest Temperature 266 | 40 109 266 21 114 205 Average Temperature 58 | 24 28 62 5 43 83 Received Heat Transfer 1284 | . 231 225 261 27 540 Siege Activations . | . . . . . . Robots Corrupted 1 | . . 1 . . . Combat Hostiles 1 | . . 1 . . . Parts Fried . | . . . . . . Impact Corruptions . | . . . . . . Robots Melted . | . . . . . . Combat Hostiles . | . . . . . . Parts Melted . | . . . . . . Heat Transferred 521 | 75 50 100 . 111 185 Parts Sabotaged . | . . . . . . Parts Stolen . | . . . . . . Parts Stripped . | . . . . . . Power Chain Reactions 3 | . . 3 . . . Missiles Intercepted . | . . . . . . Alert | -11 -10 -9 -8 -7 -7 ------- Run | Scr Mat Mat Mat Fac Gar Peak Influence 1172 | 5 546 925 1014 711 1172 Initial 497 | . 3 230 327 450 497 Average 673 | 1 208 612 760 539 950 Maximum Alert Level 4 | . 2 3 3 3 4 Low Security (%) 9 | 100 65 3 . . . Level 1 9 | . 26 17 2 . . Level 2 24 | . 7 22 34 94 14 Level 3 50 | . . 56 62 5 61 Level 4 5 | . . . . . 24 Level 5 . | . . . . . . High Security . | . . . . . . Max Security . | . . . . . . Squads Dispatched 13 | . 2 6 4 1 . Investigation 3 | . 1 . 1 1 . Extermination . | . . . . . . Reinforcement 6 | . 1 3 2 . . Assault 4 | . . 3 1 . . Garrison . | . . . . . . Intercept . | . . . . . . Searches Triggered . | . . . . . . Construction Impeded 3 | . . 1 2 . . Haulers Reinforced . | . . . . . . Active Scanning Responses . | . . . . . . Cargo Convoy Interrupts . | . . . . . . Stealth | -11 -10 -9 -8 -7 -7 --------- Run | Scr Mat Mat Mat Fac Gar Distress Signals 6 | . 2 3 1 . . Communications Jammed . | . . . . . . Distress Signals . | . . . . . . Times Spotted 99 | . 13 24 28 9 25 Peak Tracking Total 8 | . 4 6 5 3 8 Tactical Retreats 9 | . 2 6 1 . . Traps | -11 -10 -9 -8 -7 -7 ------- Run | Scr Mat Mat Mat Fac Gar Traps Triggered 4 | . 2 . . . 2 Indirectly . | . . . . . . Trap Hack Attempts . | . . . . . . Triggered . | . . . . . . Disarmed . | . . . . . . Reprogrammed . | . . . . . . Reused . | . . . . . . Traps Extracted . | . . . . . . Installed . | . . . . . . Triggered . | . . . . . . Machines | -11 -10 -9 -8 -7 -7 ---------- Run | Scr Mat Mat Mat Fac Gar Machines Disabled 17 | . 3 5 5 . 4 Max in Single Turn 2 | . 2 2 2 . 1 Garrison Relay 3 | . . . . . 3 Machines Sabotaged . | . . . . . . Garrisons Compromised . | . . . . . . Overloaded Fab Kills . | . . . . . . Hacking | -11 -10 -9 -8 -7 -7 --------- Run | Scr Mat Mat Mat Fac Gar Machines Accessed 14 | . 2 7 3 2 . Terminals 7 | . 2 3 2 . . Fabricators 1 | . . . . 1 . Repair Stations 3 | . . 2 1 . . Recycling Units . | . . . . . . Scanalyzers 2 | . . 2 . . . Garrison Access 1 | . . . . 1 . Total Hacks 49 | . 7 26 11 5 . Successful 23 | . 2 12 8 1 . Failed 26 | . 5 14 3 4 . Catastrophic 2 | . . 1 . 1 . Database Lockouts . | . . . . . . Manual . | . . . . . . Terminals 24 | . 7 12 5 . . Fabricators 2 | . . . . 2 . Repair Stations 12 | . . 6 6 . . Recycling Units . | . . . . . . Scanalyzers 8 | . . 8 . . . Garrison Access 3 | . . . . 3 . Terminal Hacks 9 | . 2 4 3 . . Robot Analysis 1 | . 1 . . . . Emergency Access Points 1 | . . . 1 . . Alert Level 2 | . . 2 . . . Unreport Threat 1 | . . 1 . . . Locate Traps 2 | . . 1 1 . . Reinforcement Status 1 | . . . 1 . . Hauler Manifests 1 | . 1 . . . . Fabricator Hacks . | . . . . . . Repair Station Hacks 6 | . . 1 5 . . Scan Component 4 | . . 1 3 . . Repair 2 | . . . 2 . . Recycling Unit Hacks . | . . . . . . Scanalyzer 7 | . . 7 . . . Insert Component 4 | . . 4 . . . Analyze 3 | . . 3 . . . Garrison Access Hacks 1 | . . . . 1 . Unlock Access 1 | . . . . 1 . Unauthorized Hacks . | . . . . . . Terminals . | . . . . . . Fabricators . | . . . . . . Repair Stations . | . . . . . . Recycling Units . | . . . . . . Scanalyzers . | . . . . . . Garrison Access . | . . . . . . Data Cores Recovered . | . . . . . . Used . | . . . . . . Hacking Detections 12 | . 2 6 2 2 . Full Trace Events 4 | . 1 1 1 1 . Feedback Events . | . . . . . . Feedback Blocked . | . . . . . . Robot Schematics Acquired . | . . . . . . Robots Built . | . . . . . . Authchips . | . . . . . . Time . | . . . . . . Total Robot Build Rating . | . . . . . . Part Schematics Acquired 3 | . . 3 . . . Parts Built . | . . . . . . Authchips . | . . . . . . Time . | . . . . . . Total Part Build Rating . | . . . . . . Parts Repaired 2 | . . . 2 . . Time 76 | . . . 76 . . Parts Recycled . | . . . . . . Recycled Matter . | . . . . . . Retrieved Matter . | . . . . . . Retrieved Components . | . . . . . . Parts Scanalyzed 3 | . . 3 . . . Part Schematics Acquired 3 | . . 3 . . . Parts Damaged 1 | . . 1 . . . Bothacking | -11 -10 -9 -8 -7 -7 ------------ Run | Scr Mat Mat Mat Fac Gar Used RIF Installer . | . . . . . . Robots Hacked . | . . . . . . Non-combat . | . . . . . . Combat . | . . . . . . Robot Hacks Applied . | . . . . . . Relay Couplers Released 10 | . . . . . 10 Machine Destruction 10 | . . . . . 10 Fabnet Peak Effective % . | . . . . . . Robots Rewired . | . . . . . . Allies Hacked . | . . . . . . Hacks Repelled . | . . . . . . Allies | -11 -10 -9 -8 -7 -7 -------- Run | Scr Mat Mat Mat Fac Gar Total Allies . | . . . . . . Largest Group . | . . . . . . Highest-Rated Group . | . . . . . . Highest-Rated Ally . | . . . . . . Total Orders . | . . . . . . Ally Attacks . | . . . . . . Total Damage . | . . . . . . Kills . | . . . . . . Allies Corrupted . | . . . . . . Allies Melted . | . . . . . . Intel | -11 -10 -9 -8 -7 -7 ------- Run | Scr Mat Mat Mat Fac Gar Robot Analysis Total 1 | . 1 . . . . Derelict Logs Recovered . | . . . . . . Drone Launches . | . . . . . . Drone Recoveries . | . . . . . . Exploration | -11 -10 -9 -8 -7 -7 ------------- Run | Scr Mat Mat Mat Fac Gar Turns Passed 3436 | 71 332 1208 880 150 795 Spaces Moved 2175 | 38 210 786 566 123 452 Core 11 | 2 . . . . 9 Treads 67 | . . . . . 67 Legs 1277 | . 128 282 435 123 309 Wheels 118 | 36 82 . . . . Hover 702 | . . 504 131 . 67 Flight . | . . . . . . Fastest Speed 50 | 50 90 116 52 90 90 Average Speed 115 | 85 109 117 111 90 130 Slowest Speed 330 | 95 120 250 180 90 330 Overloaded Moves . | . . . . . . Propulsion Burnouts . | . . . . . . Robots Hopped . | . . . . . . Cave-ins Triggered 1 | . . 1 . . . Exploration Rate (%) 35 | 3 39 53 40 4 72 Regions Visited 5 Branch Regions . Pre-discovered Areas . | . . . . . . Known Exits Taken 4 | . 1 1 1 1 . Unknown Exits Taken 1 | 1 . . . . . Scrap Searched . | . . . . . . Spaces Dug 5 | . . 5 . . . Terrain Destroyed 622 | . 93 160 288 31 50 Melee . | . . . . . . Projectile 7 | . . 5 2 . . AOE 615 | . 93 155 286 31 50 Terrain Rammed . | . . . . . . Walls Destroyed . | . . . . . . Machines Disabled . | . . . . . . Actions | -11 -10 -9 -8 -7 -7 --------- Run | Scr Mat Mat Mat Fac Gar Total 2769 | 62 274 995 728 149 561 Wait 150 | . . 100 46 1 3 Move 2170 | 37 209 785 565 122 452 Hop . | . . . . . . Pick Up 81 | 11 17 15 19 4 15 Fast Attach 9 | . . 5 3 1 . Attach 43 | 6 8 8 3 2 16 Detach . | . . . . . . Swap 31 | . 5 6 10 4 6 Drop 40 | . 9 15 10 3 3 Fire 206 | 8 26 61 57 12 42 Melee 32 | . . . 15 . 17 Ram . | . . . . . . Kick . | . . . . . . Crush . | . . . . . . Escape Stasis 7 | . . . . . 7 Rewire . | . . . . . . Trap . | . . . . . . Miscellaneous . | . . . . . . Route ------- -11/Scrapyard -10/Materials -9/Materials (discovered 2 exits: *Mat / *Min) -8/Materials -7/Factory -7/Garrison (discovered 2 exits: [*Fac x2]) History --------- Turn | Location | Event 17 | -11/Scrapyard | Discovered new exit (range 15) 72 | -11/Scrapyard | Entered Materials 310 | -10/Materials | Build established: Mutant 365 | -10/Materials | Discovered new exit (range 4) 403 | -10/Materials | Identified exit to Materials 404 | -10/Materials | Entered another Materials area 404 | -9/Materials | Evolved 2 slots: Utility x2 509 | -9/Materials | Crushed by falling debris 826 | -9/Materials | Core integrity fell below 50% 829 | -9/Materials | Discovered new exit (range 16) 851 | -9/Materials | Identified exit to Materials 862 | -9/Materials | Destroyed 7 combat bots 1339 | -9/Materials | Discovered new exit (range 15) 1362 | -9/Materials | Identified exit to Mines 1604 | -9/Materials | First assault squad dispatched 1612 | -9/Materials | Entered another Materials area 1612 | -8/Materials | Evolved 2 slots: Propulsion x1, Utility x1 1949 | -8/Materials | Repaired VSS Leg 1988 | -8/Materials | Repaired Katana 2012 | -8/Materials | First assault squad dispatched 2028 | -8/Materials | Discovered new exit (range 10) 2326 | -8/Materials | Identified exit to Factory 2492 | -8/Materials | Entered Factory 2492 | -7/Factory | Evolved 2 slots: Power x1, Propulsion x1 2631 | -7/Factory | Destroyed 9 combat bots 2634 | -7/Factory | Identified exit to Garrison 2642 | -7/Factory | Entered Garrison 2662 | -7/Garrison | Triggered checkpoint 2713 | -7/Garrison | Lost 3 parts (1p2n) 2754 | -7/Garrison | Triggered checkpoint 2813 | -7/Garrison | Destroyed 8 combat bots 2819 | -7/Garrison | Lost 5 parts (1p2n1u1w) 2849 | -7/Garrison | Triggered checkpoint 3018 | -7/Garrison | Triggered checkpoint 3045 | -7/Garrison | Garrison Relay disabled 3086 | -7/Garrison | Discovered new exit (range 9) 3168 | -7/Garrison | Discovered new exit (range 10) 3186 | -7/Garrison | Triggered checkpoint 3233 | -7/Garrison | Lost 3 parts (3n) 3242 | -7/Garrison | Build established: Scavenger-Mutant 3242 | -7/Garrison | Garrison Relay disabled 3386 | -7/Garrison | Triggered checkpoint 3391 | -7/Garrison | Triggered checkpoint 3402 | -7/Garrison | Core integrity fell below 50% 3428 | -7/Garrison | Core integrity fell below 20% 3437 | -7/Garrison | Destroyed by Y-54 Guardian with Gatling Laser Last Messages --------------- 03324_ Stasis field depleted. 03334_ LI>,S%#X7O5U=HMMOOLESFB1LXNIN7CVQ 03386_ Beams of light sweep through the air. An alarm sounds. 03386_ Slug penetrates S-27 Virus. 03386_ VSS Leg destroyed. 03389_ Slug penetrates S-27 Virus. 03391_ Beams of light sweep through the air. An alarm sounds. 03392_ S-27 Virus destroyed. 03392_ Switching to secondary target: Y-54 Guardian. 03392_ Slug penetrates Reinforced Barrier. 03392_ Lgt. Nuclear Core destroyed. 03395_ Lgt. Treads destroyed. 03397_ Lgt. Nuclear Core destroyed. 03397_ Gauss Rifle destroyed. 03399_ System corrupted: Substantial component data lost. 03401_ Minigun destroyed. 03405_ S-27 Virus destroyed. 03419_ Core Shielding destroyed. 03419_ Adv. Heat Sink destroyed. 03420_ Acquired 15 matter. Map ----- +----------------------------------------------------+ | ????????????#####????????????????????????????????? | | ????????????# %=#????????????????????????????????? | | ???????###### %###?????????????????#####????????? | | ##???### === #?????????????????# [ #????????? | | #???#"# ######## #???????????####### #######??? | | #???#" #??????# #???????????# #??? | | #???# ! #??????# #???????????#!!!########### #??? | | #???#"! #??????# #??????????#"" ""#????????# #??? | | #???#"# #??????# #??????????#######????????# #??? | | #???#####??????# #?????????????????????????# #??? | | #??????????????# #???????????????????????### #### | | #??????????????# #???????????????????????# | | ################ #######?????????????????# | | #?????????????????# ##### | | #?????????????????#^ #???? | | ############ ######## #?????????????????# ^#???? | | ???????????# #??????# #?????????????????# #???? | | ???????????# #??????# #?????????????????# #???? | | ???????????# #??????# #?????????????????# #???? | | ???????????# #??????# #?????????????????# #???? | | ???????????# #??????# #######???????????# #???? | | ???????????# #??????# ## #???????????# #???? | | ???????????# #?????## ## ######??????# #???? | | ???????????# ####### ######## #???? | | ???????????# ^ [ #???? | | ???????????# Y%@Y #???? | | ???????????########## %##% ## ###########???? | | ??????????????????### [## ## ###???????????? | | ??????????????????# #???????????? | | ??????????????????# % #???????????? | | ??????????????????# = #???????????? | | ??????????????????# #???????????? | | ??????????????????### ## ###???????????? | | ???????????########## # #?????????????? | | ???????????# # #?????????????? | | ???????????# # [ #?????????????? | | ???????????# ####### == % #?????????????? | | ???????????# #?????# ! # = ## ##?????????????? | | ???????????# ##????# ##= ## #??????????????? | | ???????????# [%###### #######? #??????????????? | | ???????????# ![=![%=#= #???????? #??????????????? | | ???????????# =####### #?????????#??????????????? | | ????????#### #####?# #????????????????????????? | | ???????## ## # ### #????????????????????????? | | ######## # # ## #????????????????????????? | | #????????????????????????? | | #????????????????????????? | | = #????????????????????????? | | ######### ## ### #######????????????????????????? | | ???????# ## [ #####?# #??????????????????????????? | +----------------------------------------------------+ Best States ------------- Heat Dissipation 53 Energy Generation 23 Energy Capacity 280 Matter Stores 300 Matter Capacity 300 Sight Range 16 Terrain Scan Density 10 ECM Strength 1 Additional Mass Support 6 Armor Coverage 300 Resistance: KI 20 Core Shielding 20 Evasion (%) 57 Targeting Accuracy 6 Recoil Reduction 1 Item Schematics ----------------- Imp. Hover Unit | -9/Materials | Scanalyzed Rocket Launcher | -9/Materials | Scanalyzed Hvy. Ion Engine | -9/Materials | Scanalyzed Robot Schematics ------------------ None Fabricated ------------ Nothing Alien Tech Used ----------------- None Achievements -------------- None Challenges ------------ None Game ------ Seed StasisBlastRouter Manual? 0 Play Time 01:38:48 Cumulative 79.3 hours Start 2022.05.03 @ 14:59:28 End 2022.05.03 @ 16:45:46 Sessions 1 Manual Loads 0 Difficulty Rogue Special Mode None Game No. 36 Rogue 33 Adventurer 3 Explorer 0 Win Type - Total 0 Types 0/0/0/0/0/0/0/0/0 Lore% 15 Gallery% 35 Achievement% 26 Wizard Run 0 Options --------- ASCII 0 Keyboard 0 Movement Mouse Keybinds 0 Fullscreen 1 Font 18/SmallcapsGlow Map View 76x50 Tactical HUD 1 Map Filters NONE Filters NONE Steam 1 RUN: b2ffb1e8-67fe-4530-a26a-f693e3a49245